bitfinex-derivatives/quotes_SOLF0:USTF0_20240923
["timestamp","ask_amount","ask_price","bid_price","bid_amount"]
[1727106456272,3.4477,145.02,144.98,3.4484]
[1727106456968,3.4475,145.03,144.93,18.55]
[1727106457675,3.4477,145.02,144.98,3.4485]
[1727106458374,3.4477,145.02,144.93,18.55]
[1727106458375,3.4481,145.0,144.93,18.55]
[1727106458576,18.55,145.04,144.93,18.55]
[1727106459069,3.4479,145.01,144.97,3.4486]
[1727106459270,18.55,145.04,144.93,18.55]
[1727106459673,1.3862,145.05,144.95,18.55]
[1727106460178,3.4471,145.04,145.0,3.4479]
[1727106460782,3.4476,145.02,144.98,3.4485]
[1727106460969,18.55,145.03,144.98,3.4485]
[1727106461165,18.55,145.03,144.92,4.1732]
[1727106461366,3.4482,145.0,144.92,4.1732]
[1727106461976,3.4482,145.0,144.96,3.4488]
[1727106462380,1.3862,145.05,144.93,18.55]
[1727106462875,3.4479,145.01,144.99,3.4483]
[1727106463076,1.3862,145.05,144.99,3.4483]
[1727106463866,1.3862,145.05,144.98,3.4484]
[1727106464173,3.4477,145.02,144.98,3.4484]
[1727106464474,18.55,145.03,144.97,3.4486]
[1727106464776,18.55,145.03,144.92,4.1732]
[1727106464977,18.55,145.03,144.96,3.4488]
[1727106465172,18.55,145.03,144.92,4.1732]
[1727106465376,3.4482,145.0,144.92,4.1732]
[1727106465572,3.38808235,145.01,144.92,4.1732]
[1727106465771,3.4482,145.0,144.92,4.1732]
[1727106466172,19.9362,145.05,144.93,18.55]
[1727106466574,18.55,145.03,144.96,3.449]
[1727106466776,2.8638,145.02,144.96,3.449]
[1727106467078,2.8638,145.02,144.92,4.1732]
[1727106467376,3.53194044,145.01,144.96,3.4488]
[1727106467677,18.55,145.01,144.92,4.1732]
[1727106468087,21.98396515,145.01,144.92,4.1732]
[1727106468696,3.4484,144.99,144.92,4.1732]
[1727106469188,3.4486,144.98,144.95,3.4491]
[1727106469588,21.98396515,145.01,144.92,1.3416]
[1727106469795,3.449,144.96,144.93,3.4495]
[1727106469980,21.98396515,145.01,144.86,4.1695]
[1727106470288,18.55,144.98,144.86,22.7195]
[1727106470483,3.4494,144.95,144.92,3.4499]
[1727106471188,15.0491,144.96,144.93,3.4496]
[1727106472391,3.4491,144.96,144.89,11.6]
[1727106472884,3.4491,144.96,144.93,3.4495]
[1727106473286,11.6,144.98,144.91,3.45]
[1727106473484,11.6,144.98,144.87,11.6]
[1727106473691,1.4069,144.99,144.87,11.6]
[1727106473991,11.6,144.97,144.87,11.6]
[1727106474292,3.4496,144.94,144.87,11.6]
[1727106474489,3.4496,144.94,144.91,3.45]
[1727106474683,3.4496,144.94,144.87,11.6]
[1727106475297,3.4496,144.94,144.91,3.45]
[1727106475498,11.6,144.94,144.86,4.1695]
[1727106475792,11.6,144.94,144.9,3.4502]
[1727106476289,11.6,144.94,144.86,4.1695]
[1727106477090,3.4498,144.93,144.9,3.4503]
[1727106477288,3.53272124,144.93,144.83,11.6]
[1727106477595,3.4506,144.9,144.87,3.451]
[1727106479390,15.03055363,144.92,144.83,11.6]
[1727106479591,11.6,144.88,144.76,6.9076]
[1727106479893,3.4515,144.86,144.83,3.4521]
[1727106480290,3.4512,144.87,144.84,3.4518]
[1727106480796,11.6,144.88,144.78,11.6]
[1727106481094,11.6,144.86,144.77,4.1019]
[1727106481295,3.4522,144.83,144.77,1.3364]
[1727106481499,11.6,144.84,144.73,2.7627]
[1727106481794,3.4522,144.83,144.8,3.4527]
[1727106481998,2.7998,144.87,144.82,11.6]
[1727106482200,1.3691,144.89,144.82,11.6]
[1727106482492,1.3691,144.89,144.81,18.55]
[1727106482698,3.4509,144.88,144.81,18.55]
[1727106483092,1.3691,144.89,144.79,24.66363834]
[1727106483294,1.3691,144.89,144.79,2.7354]
[1727106483895,3.4514,144.86,144.82,3.4522]
[1727106484290,1.3691,144.89,144.79,6.17063316]
[1727106484499,21.245,144.92,144.8,19.9271]
[1727106484794,3.4504,144.91,144.88,3.4509]
[1727106485102,3.4504,144.91,144.82,18.55]
[1727106485504,3.4504,144.9,144.87,3.4511]
[1727106486597,3.4507,144.89,144.8,23.40240224]
[1727106486793,21.245,144.92,144.8,19.9271]
[1727106487196,3.4505,144.9,144.8,19.9271]
[1727106487803,2.695,144.92,144.82,18.55]
[1727106488203,2.695,144.92,144.86,3.4513]
[1727106488600,2.695,144.92,144.8,19.9271]
[1727106488802,18.55,144.88,144.8,1.3771]
[1727106489108,18.55,144.86,144.79,2.7354]
[1727106489308,3.45694313,144.85,144.79,1.3793]
[1727106489507,3.4523,144.83,144.75,18.55]
[1727106489801,3.45694313,144.85,144.8,3.4528]
[1727106490000,3.45694313,144.85,144.74,2.799]
[1727106490207,18.55,144.84,144.74,2.799]
[1727106490504,26.09188713,144.84,144.78,3.4532]
[1727106491007,26.09188713,144.84,144.8,3.4528]
[1727106491008,4.1426,144.84,144.8,3.4528]
[1727106491506,4.1426,144.84,144.74,2.799]
[1727106491706,4.1426,144.84,144.8,3.4527]
[1727106492205,18.55,144.88,144.77,18.55]
[1727106492400,18.55,144.88,144.83,3.452]
[1727106492602,18.55,144.88,144.75,25.4581]
[1727106492802,18.55,144.86,144.81,3.4525]
[1727106493009,18.55,144.86,144.75,25.4581]
[1727106493402,18.55,144.88,144.77,18.55]
[1727106493607,3.451,144.88,144.79,18.55]
[1727106493801,3.38411751,144.89,144.8,4.1646]
[1727106494005,18.55,144.91,144.84,3.4518]
[1727106494305,3.4513,144.87,144.84,3.4518]
[1727106494808,3.4515,144.86,144.83,3.452]
[1727106495008,18.55,144.88,144.8,4.1646]
[1727106495212,18.55,144.88,144.75,18.55]
[1727106495402,3.452,144.84,144.75,18.55]
[1727106495604,18.55,144.85,144.8,3.4527]
[1727106495806,3.4523,144.83,144.8,3.4527]
[1727106496105,18.55,144.85,144.75,18.55]
[1727106496305,18.55,144.85,144.81,3.4524]
[1727106496510,3.452,144.84,144.81,3.4524]
[1727106499216,3.4521,144.83,144.75,18.55]
[1727106499408,18.55,144.85,144.75,18.55]
[1727106499718,3.53087443,144.91,144.77,18.55]
[1727106499719,18.55,144.88,144.77,18.55]
[1727106499906,18.55,144.88,144.78,2.8266]
[1727106500213,3.4515,144.86,144.83,3.4519]
[1727106500516,3.53446276,144.87,144.78,2.8266]
[1727106500710,18.55,144.9,144.79,3.45261132]
[1727106500906,18.55,144.9,144.8,18.55]
[1727106501313,3.4508,144.89,144.86,3.4512]
[1727106501808,18.55,144.9,144.88,3.4509]
[1727106502009,3.5254434,144.91,144.88,3.4509]
[1727106502212,3.5254434,144.91,144.8,21.99568067]
[1727106502514,22.8082,144.92,144.8,18.55]
[1727106502711,22.8082,144.92,144.79,1.3986]
[1727106502712,18.55,144.88,144.79,1.3986]
[1727106502909,22.0750981,144.88,144.79,1.3986]
[1727106503305,18.55,144.88,144.79,1.3986]
[1727106504518,3.4513,144.87,144.84,3.4517]
[1727106504710,3.4513,144.87,144.79,1.3986]
[1727106505218,3.4513,144.87,144.84,3.4517]
[1727106505410,3.4513,144.87,144.79,1.3986]
[1727106505811,3.4513,144.87,144.84,3.4517]
[1727106506518,3.4513,144.87,144.79,4.81803839]
[1727106507714,3.4513,144.87,144.79,1.3986]
[1727106508017,3.4513,144.87,144.84,3.4517]
[1727106509008,3.4513,144.87,144.85,3.4516]
[1727106511124,4.2582,144.92,144.81,18.55]
[1727106511318,2.8639,144.92,144.81,18.55]
[1727106511516,6.29151686,144.92,144.82,6.9047]
[1727106511721,2.8639,144.92,144.82,6.9047]
[1727106512122,3.4505,144.9,144.82,6.9047]
[1727106512418,18.55,144.94,144.84,18.55]
[1727106512614,3.4498,144.93,144.85,4.2454]
[1727106513326,3.37236614,144.92,144.85,4.2454]
[1727106513718,18.55,144.91,144.79,22.00178905]
[1727106513921,18.55,144.91,144.8,4.2338]
[1727106514217,60.0,144.87,144.86,3.4514]
[1727106515925,55.6068,144.87,144.86,3.4514]
[1727106516228,49.7281,144.87,144.86,3.4514]
[1727106516524,47.9945,144.87,144.86,3.4514]
[1727106519923,21.3186,144.96,144.89,3.4507]
[1727106519924,3.36831204,144.93,144.89,3.4507]
[1727106520322,3.4501,144.92,144.89,3.4507]
[1727106521321,3.4502,144.91,144.88,3.4508]
[1727106521922,3.4502,144.91,144.83,79.21982623]
[1727106522317,3.451,144.88,144.79,3.45178905]
[1727106522523,18.55,144.92,144.8,18.55]
[1727106522924,3.4506,144.9,144.87,3.451]
[1727106523323,18.55,144.91,144.78,18.55]
[1727106523520,18.55,144.88,144.79,3.49892977]
[1727106524425,18.55,144.88,144.76,23.59737223]
[1727106524628,3.452,144.84,144.81,3.4524]
[1727106524826,18.55,144.86,144.75,6.9078]
[1727106525832,3.4518,144.85,144.82,3.4523]
[1727106526638,3.4518,144.85,144.83,3.452]
[1727106527135,18.55,144.85,144.74,1.3475]
[1727106527330,1.4604,144.89,144.75,5.05138966]
[1727106527530,18.55,144.84,144.81,3.4526]
[1727106527935,3.4522,144.83,144.74,6.39888966]
[1727106528131,3.4522,144.83,144.8,3.4526]
[1727106528735,3.4522,144.83,144.74,6.39888966]
[1727106529640,3.4522,144.83,144.75,5.05138966]
[1727106529828,18.55,144.84,144.75,5.05138966]
[1727106530028,18.55,144.87,144.76,18.55]
[1727106530232,1.3825,144.88,144.76,23.60138966]
[1727106530543,3.4514,144.86,144.77,11.95848966]
[1727106530729,3.4514,144.86,144.83,3.452]
[1727106530934,3.4512,144.87,144.77,11.95848966]
[1727106531228,3.4512,144.87,144.77,11.96886462]
[1727106531844,3.4512,144.87,144.84,3.4517]
[1727106532340,3.4514,144.86,144.84,3.4517]
[1727106532646,3.4514,144.86,144.83,3.452]
[1727106532848,3.4517,144.85,144.83,3.452]
[1727106533642,3.4517,144.85,144.82,3.4522]
[1727106534042,3.4519,144.84,144.73,6.9089]
[1727106534348,18.55,144.87,144.78,5.0701366]
[1727106534649,18.55,144.87,144.75,13.18604171]
[1727106534850,3.4519,144.84,144.81,3.4525]
[1727106535145,3.4519,144.84,144.77,5.0701366]
[1727106535347,18.55,144.87,144.78,5.0701366]
[1727106535650,18.55,144.87,144.82,3.4522]
[1727106535844,18.55,144.87,144.78,5.07332873]
[1727106536045,3.4517,144.85,144.77,8.11590511]
[1727106536251,3.4517,144.85,144.78,5.07385776]
[1727106536453,3.4517,144.85,144.79,5.07385776]
[1727106536649,3.4517,144.85,144.75,6.48228415]
[1727106536849,3.4517,144.85,144.76,13.19899074]
[1727106537057,3.4517,144.85,144.82,3.4521]
[1727106537348,3.4517,144.85,144.74,1.3475]
[1727106537549,3.4517,144.85,144.75,25.04005534]
[1727106537948,3.4517,144.85,144.75,30.11839238]
[1727106538149,3.4517,144.85,144.75,38.24373164]
[1727106538560,3.4514,144.86,144.76,6.9075]
[1727106538750,3.4514,144.86,144.77,18.55]
[1727106539348,3.4514,144.86,144.77,25.04291085]
[1727106539853,3.4514,144.86,144.79,3.4529]
[1727106540059,3.4514,144.86,144.77,18.55]
[1727106540460,3.4514,144.86,144.78,8.12920833]
[1727106540659,3.4514,144.86,144.78,13.20996353]
[1727106540856,1.3825,144.88,144.78,5.0807552]
[1727106541058,1.3825,144.88,144.79,25.04438075]
[1727106541258,1.4604,144.89,144.8,6.49438075]
[1727106541455,1.3397,144.92,144.82,18.55]
[1727106541762,1.3397,144.92,144.83,6.9041]
[1727106541963,3.4503,144.91,144.83,6.9041]
[1727106542364,3.4503,144.91,144.83,18.4941]
[1727106542762,11.59,144.86,144.84,5.07794289]
[1727106543061,11.59,144.88,144.8,18.31035644]
[1727106543267,11.59,144.9,144.86,3.4514]
[1727106543770,3.4507,144.89,144.86,3.4514]
[1727106544662,15.0405,144.9,144.87,3.451]
[1727106544871,11.59,144.91,144.83,5.07791294]
[1727106545063,11.59,144.91,144.81,11.59]
[1727106545266,15.0403,144.91,144.88,3.4508]
[1727106545765,1.3397,144.92,144.85,11.59]
[1727106546361,2.7989,144.94,144.85,11.59]
[1727106546362,2.7989,144.94,144.85,18.57]
[1727106546864,1.455,144.94,144.86,5.07831085]
[1727106547073,1.4498,144.99,144.87,23.64831085]
[1727106547269,6.2676,144.99,144.9,18.57]
[1727106547565,6.2676,144.99,144.88,5.07831085]
[1727106547566,2.8193,144.99,144.88,6.42541085]
[1727106547765,2.8193,144.99,144.88,1.3471]
[1727106547967,2.8193,144.99,144.89,5.07432357]
[1727106548362,3.4489,144.97,144.88,1.3471]
[1727106548559,3.4489,144.97,144.89,5.07239968]
[1727106548758,3.4489,144.97,144.89,3.45564376]
[1727106548964,3.449,144.96,144.92,3.4498]
[1727106549165,18.57,144.97,144.88,1.3471]
[1727106549376,21.3893,144.99,144.88,1.3471]
[1727106549669,3.4489,144.97,144.93,3.4497]
[1727106549869,18.57,144.96,144.89,5.07195075]
[1727106550067,18.57,144.94,144.89,5.07195075]
[1727106550263,2.8193,144.99,144.89,5.07195075]
[1727106550264,18.57,144.91,144.89,5.07195075]
[1727106550468,18.57,144.91,144.87,3.4511]
[1727106551065,22.0203,144.91,144.87,3.4511]
[1727106551372,18.57,144.91,144.87,3.4511]
[1727106551568,3.4507,144.89,144.86,3.4513]
[1727106551767,18.57,144.91,144.84,8.11458154]
[1727106551963,18.57,144.91,144.83,1.3683]
[1727106552768,3.4506,144.9,144.87,3.451]
[1727106553171,3.4507,144.89,144.86,3.4513]
[1727106554168,18.57,144.91,144.85,3.4515]
[1727106554169,3.451,144.88,144.85,3.4515]
[1727106554466,18.57,144.91,144.82,5.06806945]
[1727106554670,3.4505,144.9,144.87,3.4511]
[1727106556170,3.4507,144.89,144.85,3.4515]
[1727106556973,18.57,144.91,144.82,5.06979805]
[1727106557174,19.9001,144.92,144.83,5.06947884]
[1727106557367,19.9001,144.92,144.8,6.47865712]
[1727106557672,18.57,144.9,144.81,13.18010075]
[1727106557876,18.57,144.9,144.82,5.06926952]
[1727106558071,3.4515,144.86,144.79,3.41089553]
[1727106558381,3.4515,144.86,144.8,5.07161004]
[1727106558573,3.4512,144.87,144.81,5.07161004]
[1727106558780,18.57,144.9,144.79,8.11464382]
[1727106558979,18.57,144.9,144.8,13.18536635]
[1727106559279,18.57,144.9,144.79,9.92048717]
[1727106559280,3.4511,144.88,144.85,3.4515]
[1727106559480,19.9001,144.92,144.81,5.07072253]
[1727106559683,3.4503,144.91,144.88,3.4509]
[1727106559877,1.3301,144.92,144.82,18.57]
[1727106560081,1.3301,144.92,144.83,1.4382]
[1727106560274,1.3301,144.92,144.83,14.6187539]
[1727106560467,2.6893,144.93,144.84,23.64072253]
[1727106560772,1.3692,144.93,144.85,5.06879767]
[1727106560975,1.3692,144.93,144.91,3.45]
[1727106562273,4.8189,144.93,144.85,8.10966694]
[1727106562473,4.8189,144.93,144.86,5.06852998]
[1727106562776,1.3692,144.93,144.84,18.57]
[1727106562980,3.45,144.92,144.84,18.57]
[1727106563278,1.3692,144.93,144.85,13.17822233]
[1727106563677,19.9392,144.93,144.85,13.17822233]
[1727106563979,3.4506,144.9,144.87,3.4509]
[1727106564281,2.8921,144.92,144.85,13.17822233]
[1727106566283,1.3692,144.93,144.85,13.17822233]
[1727106566581,1.3692,144.93,144.85,31.74822233]
[1727106567080,1.3692,144.93,144.86,10.13701748]
[1727106567279,1.3692,144.93,144.86,5.06785858]
[1727106567680,3.4506,144.9,144.87,3.4511]
[1727106568581,3.4507,144.89,144.86,5.06785858]
[1727106568979,3.4507,144.89,144.86,8.51905858]
[1727106569179,21.35,144.92,144.86,5.06785858]
[1727106569380,18.57,144.89,144.86,5.06785858]
[1727106569786,3.4511,144.87,144.86,5.06785858]
[1727106570481,3.4511,144.87,144.79,3.53758724]
[1727106570681,18.57,144.89,144.77,25.28621068]
[1727106570882,2.78,144.92,144.77,25.28621068]
[1727106570883,18.57,144.91,144.8,13.19460311]
[1727106571089,2.78,144.92,144.8,18.10176881]
[1727106571280,2.78,144.92,144.82,18.57]
[1727106571481,2.78,144.92,144.83,5.07484735]
[1727106571687,2.78,144.92,144.82,18.57]
[1727106571987,3.4506,144.9,144.83,5.07347262]
[1727106572182,3.4506,144.9,144.87,3.4511]
[1727106572888,3.4507,144.89,144.87,3.4511]
[1727106573293,3.4507,144.89,144.83,5.07273939]
[1727106573486,3.4507,144.89,144.82,18.57]
[1727106573883,3.4509,144.88,144.83,5.0727308]
[1727106574086,18.57,144.91,144.8,6.4826495]
[1727106574290,18.57,144.91,144.81,13.19069043]
[1727106574492,3.451,144.88,144.85,3.4515]
[1727106574693,18.57,144.91,144.83,5.07334247]
[1727106574893,18.57,144.91,144.81,8.11632933]
[1727106575184,3.4508,144.89,144.86,3.4512]
[1727106575790,18.57,144.91,144.83,5.07270309]
[1727106575988,18.57,144.88,144.8,14.59882834]
[1727106576190,18.57,144.88,144.83,3.4519]
[1727106576191,3.4514,144.87,144.83,3.4519]
[1727106576393,3.4514,144.87,144.8,8.11855399]
[1727106576588,3.4514,144.87,144.81,13.19220176]
[1727106576789,3.4514,144.87,144.82,5.07364777]
[1727106577084,3.4514,144.86,144.79,14.60242419]
[1727106577283,18.57,144.88,144.82,3.4522]
[1727106577497,1.4442,144.87,144.82,3.4522]
[1727106577793,3.4516,144.86,144.82,3.4522]
[1727106578193,1.4442,144.87,144.81,3.4525]
[1727106578391,18.57,144.86,144.81,3.4525]
[1727106578583,21.3611,144.86,144.81,3.4525]
[1727106578892,21.3611,144.86,144.79,5.07814746]
[1727106579288,3.452,144.84,144.82,3.4523]
[1727106579490,3.452,144.84,144.79,5.07814746]
[1727106579788,21.3611,144.86,144.79,5.07814746]
[1727106579789,3.4521,144.83,144.8,3.4527]
[1727106579989,2.7911,144.86,144.79,5.07814746]
[1727106580697,22.08833943,144.85,144.79,5.07814746]
[1727106580888,22.08833943,144.85,144.77,8.12444778]
[1727106581088,3.4522,144.83,144.75,14.61434654]
[1727106581283,3.4522,144.83,144.73,25.29068585]
[1727106581284,3.4522,144.83,144.76,13.20252858]
[1727106581484,3.4522,144.83,144.77,5.0776361]
[1727106581686,3.4522,144.83,144.76,8.12367927]
[1727106581891,3.4522,144.83,144.77,5.07729954]
[1727106582099,3.4522,144.83,144.76,8.12369483]
[1727106582283,3.4524,144.82,144.79,3.4529]
[1727106582487,22.08833943,144.85,144.77,5.07672947]
[1727106582488,18.57,144.83,144.77,5.07672947]
[1727106582690,13.0187,144.81,144.72,1.3727]
[1727106582893,13.0187,144.81,144.75,8.12318012]
[1727106583191,11.61,144.79,144.75,8.12318012]
[1727106584197,3.4535,144.78,144.75,8.12318012]
[1727106584395,11.61,144.79,144.75,8.12318012]
[1727106585496,3.4537,144.77,144.75,8.12318012]
[1727106585694,11.61,144.79,144.75,8.12318012]
[1727106586401,2.8197,144.8,144.75,8.12318012]
[1727106586601,2.8197,144.8,144.78,3.4531]
[1727106587098,6.2726,144.8,144.77,3.4535]
[1727106587699,3.4532,144.79,144.76,3.4537]
[1727106588007,2.8197,144.8,144.75,8.12318012]
[1727106588803,3.4538,144.76,144.75,8.12318012]
[1727106588988,18.58,144.76,144.74,5.07893234]
[1727106589187,4.83804958,144.75,144.74,5.07893234]
[1727106589798,1.3999,144.75,144.74,5.07893234]
[1727106590901,19.9799,144.75,144.7,3.4551]
[1727106591101,19.9799,144.75,144.66,1.3516]
[1727106591402,19.9799,144.75,144.7,3.4551]
[1727106591598,19.9799,144.75,144.66,1.3516]
[1727106591791,3.4549,144.72,144.69,3.4553]
[1727106592301,18.58,144.73,144.68,3.4555]
[1727106592302,3.455,144.71,144.68,3.4555]
[1727106592803,3.455,144.71,144.63,2.7813]
[1727106592998,3.4548,144.72,144.63,2.7813]
[1727106593603,3.4546,144.73,144.63,2.7813]
[1727106594196,3.4546,144.73,144.69,3.4552]
[1727106594602,18.58,144.72,144.63,2.7813]
[1727106594797,18.58,144.72,144.69,3.4553]
[1727106595204,3.4551,144.71,144.63,2.7813]
[1727106596305,22.0348,144.72,144.63,2.7813]
[1727106596508,18.58,144.72,144.68,3.4556]
[1727106597207,3.4554,144.7,144.67,3.4558]
[1727106597804,3.4554,144.7,144.68,3.4556]
[1727106598011,3.455,144.71,144.63,2.7813]
[1727106598408,3.4551,144.71,144.63,2.7813]
[1727106599013,3.4551,144.71,144.68,3.4555]
[1727106599909,3.4552,144.7,144.67,3.4559]
[1727106600105,22.0352,144.7,144.67,3.4559]
[1727106600714,3.4555,144.69,144.67,3.4559]
[1727106600910,18.58,144.69,144.63,2.7813]
[1727106601112,18.58,144.69,144.52,224.0]
[1727106601113,3.4565,144.65,144.56,6.917]
[1727106601314,3.4565,144.65,144.57,2.8035]
[1727106601504,18.58,144.67,144.63,3.4567]
[1727106601709,3.4563,144.66,144.63,3.4567]
[1727106602117,4.92980889,144.68,144.57,2.8035]
[1727106602308,3.4566,144.64,144.57,2.8035]
[1727106602712,4.92980889,144.68,144.57,2.8035]
[1727106602918,3.4569,144.63,144.57,2.8035]
[1727106603313,18.58,144.65,144.61,3.4572]
[1727106603509,18.58,144.65,144.57,2.8035]
[1727106603813,19.9693,144.67,144.62,3.4569]
[1727106604012,3.4566,144.65,144.62,3.4569]
[1727106604215,19.9693,144.67,144.62,3.4569]
[1727106604416,18.58,144.65,144.57,2.8035]
[1727106604822,19.9693,144.67,144.64,3.4565]
[1727106605019,22.0361,144.67,144.64,3.4565]
[1727106605208,18.58,144.67,144.57,2.8035]
[1727106605608,18.58,144.61,144.57,2.8035]
[1727106605821,18.58,144.61,144.59,3.4577]
[1727106606020,18.58,144.62,144.5,6.9197]
[1727106606216,18.58,144.62,144.51,2.7982]
[1727106606416,11.63,144.6,144.52,3.40873428]
[1727106606617,15.0877,144.6,144.51,2.7982]
[1727106606814,15.0877,144.6,144.51,6.17304405]
[1727106607009,15.0877,144.6,144.57,3.4582]
[1727106607217,3.4579,144.59,144.57,3.4582]
[1727106607618,11.63,144.6,144.51,6.17304405]
[1727106608426,15.0878,144.6,144.51,6.17304405]
[1727106608723,15.0878,144.6,144.57,3.4582]
[1727106609324,3.4578,144.59,144.56,3.4585]
[1727106609622,11.63,144.6,144.51,6.17304405]
[1727106609814,15.0878,144.6,144.51,6.17304405]
[1727106610018,15.0878,144.6,144.52,11.63]
[1727106610019,11.63,144.6,144.52,11.63]
[1727106610423,11.63,144.6,144.59,3.4578]
[1727106611316,11.63,144.64,144.54,11.63]
[1727106611717,11.63,144.6,144.51,6.17304405]
[1727106611924,11.63,144.58,144.51,2.7982]
[1727106612321,11.63,144.58,144.56,3.4584]
[1727106612619,11.63,144.58,144.51,2.7982]
[1727106612925,11.63,144.58,144.57,3.4583]
[1727106614322,1.4584,144.65,144.6,3.4576]
[1727106614624,11.63,144.61,144.51,9.7174]
[1727106614822,15.0875,144.61,144.58,3.4579]
[1727106615025,11.63,144.61,144.51,9.7174]
[1727106615624,15.0875,144.61,144.58,3.458]
[1727106615819,11.63,144.61,144.51,9.7174]
[1727106616018,11.63,144.61,144.59,3.4577]
[1727106616219,11.63,144.61,144.51,9.7174]
[1727106616821,15.0875,144.61,144.58,3.4579]
[1727106617026,11.63,144.61,144.58,3.4579]
[1727106617213,11.63,144.59,144.57,3.4582]
[1727106618016,11.63,144.59,144.58,3.4581]
[1727106618221,1.4584,144.65,144.52,6.9188]
[1727106618222,11.63,144.6,144.52,6.9188]
[1727106618626,11.63,144.6,144.59,3.4578]
[1727106618920,11.63,144.6,144.52,6.9188]
[1727106619124,11.63,144.58,144.57,3.4581]
[1727106620520,11.63,144.6,144.59,3.4577]
[1727106620920,11.63,144.6,144.52,6.9188]
[1727106621625,1.3767,144.61,144.52,11.63]
[1727106621925,11.63,144.62,144.52,11.63]
[1727106622125,11.63,144.62,144.61,3.4574]
[1727106623820,11.63,144.64,144.63,3.4568]
[1727106624020,130.03965209,144.93,144.63,11.63]
[1727106624021,1.3603,144.73,144.63,11.63]
[1727106624223,14.3155,144.73,144.69,3.4553]
[1727106624521,11.63,144.72,144.65,11.63]
[1727106624726,11.63,144.7,144.63,11.63]
[1727106625030,11.63,144.7,144.68,3.4557]
[1727106625326,11.63,144.7,144.63,11.63]
[1727106625327,11.63,144.7,144.59,11.63]
[1727106625534,11.63,144.68,144.59,11.63]
[1727106626030,11.63,144.68,144.65,3.4562]
[1727106626623,11.63,144.7,144.61,11.63]
[1727106627331,15.0853,144.7,144.66,3.4559]
[1727106627730,15.0853,144.7,144.61,11.63]
[1727106627931,11.63,144.72,144.63,11.63]
[1727106628324,15.0849,144.72,144.64,2.7833]
[1727106629733,15.0849,144.72,144.69,3.4554]
[1727106630120,11.63,144.72,144.7,3.455]
[1727106630326,11.63,144.72,144.64,2.7833]
[1727106631127,11.63,144.72,144.66,3.4561]
[1727106631330,1.3252,144.73,144.66,11.63]
[1727106631530,11.63,144.75,144.64,2.7833]
[1727106631926,11.63,144.75,144.65,11.63]
[1727106632525,11.63,144.77,144.67,11.63]
[1727106632831,11.63,144.77,144.69,11.63]
[1727106633042,15.0836,144.77,144.74,3.4541]
[1727106633231,11.63,144.79,144.71,11.63]
[1727106633429,15.0831,144.79,144.76,3.4536]
[1727106633737,11.63,144.79,144.71,11.63]
[1727106634237,3.4537,144.77,144.74,3.4541]
[1727106634423,11.63,144.79,144.71,11.63]
[1727106634627,3.4535,144.78,144.71,11.63]
[1727106634834,11.63,144.79,144.69,11.63]
[1727106635026,11.63,144.75,144.64,2.7833]
[1727106635224,3.4548,144.72,144.69,3.4553]
[1727106635825,3.455,144.71,144.68,3.4556]
[1727106636135,11.63,144.71,144.64,2.7833]
[1727106636327,3.4554,144.7,144.64,2.7833]
[1727106636526,3.4554,144.7,144.67,3.4558]
[1727106637630,15.085,144.71,144.68,3.4556]